bitfinex-derivatives/quotes_BTCF0:USTF0_20251208
["timestamp","ask_amount","ask_price","bid_price","bid_amount"]
[1765200404300,0.02764362,91703.0,91702.0,0.067944]
[1765200404505,0.05566362,91703.0,91702.0,0.067944]
[1765200405794,0.05666362,91703.0,91702.0,0.067944]
[1765200407099,0.05766362,91703.0,91702.0,0.05704]
[1765200411098,0.02964362,91703.0,91702.0,0.05704]
[1765200411494,0.05766362,91703.0,91702.0,0.05704]
[1765200415810,0.06856742,91703.0,91702.0,0.05704]
[1765200417009,0.00216362,91703.0,91693.0,0.05704]
[1765200417201,0.0555,91694.0,91693.0,0.05704]
[1765200418810,0.0555,91694.0,91693.0,0.05904]
[1765200419314,0.0565,91694.0,91693.0,0.05704]
[1765200419904,0.0575,91694.0,91693.0,0.05704]
[1765200421011,0.0565,91694.0,91693.0,0.05704]
[1765200421214,0.02948,91694.0,91693.0,0.05704]
[1765200421411,0.002,91694.0,91693.0,0.05704]
[1765200421715,0.001,91694.0,91693.0,0.05704]
[1765200422321,0.04055752,91703.0,91702.0,0.0555]
[1765200422505,0.00016362,91703.0,91702.0,0.066404]
[1765200424420,0.00116362,91703.0,91702.0,0.066404]
[1765200424623,0.04155742,91703.0,91702.0,0.066404]
[1765200424911,0.00116362,91703.0,91702.0,0.066404]
[1765200425510,0.00016362,91703.0,91702.0,0.068404]
[1765200432412,0.02965362,91703.0,91702.0,0.068404]
[1765200432721,0.05740362,91703.0,91702.0,0.068404]
[1765200434317,0.05940362,91703.0,91702.0,0.067404]
[1765200434622,0.05940362,91703.0,91702.0,0.066404]
[1765200434822,0.05840362,91703.0,91702.0,0.066404]
[1765200435014,0.06040362,91703.0,91702.0,0.066404]
[1765200435421,0.05840362,91703.0,91702.0,0.066404]
[1765200435620,0.05940362,91703.0,91702.0,0.066404]
[1765200436027,0.05840362,91703.0,91702.0,0.066404]
[1765200436223,0.05940362,91703.0,91702.0,0.02798]
[1765200436623,0.05543,91696.0,91695.0,0.05767]
[1765200437429,0.05543,91696.0,91695.0,0.02834]
[1765200437824,0.05543,91696.0,91695.0,0.02934]
[1765200438529,0.05743,91696.0,91695.0,0.02934]
[1765200438825,0.05743,91696.0,91695.0,0.001]
[1765200439214,0.05743,91696.0,91684.0,0.00016362]
[1765200439215,0.066336,91685.0,91684.0,0.00016362]
[1765200439525,0.066336,91685.0,91684.0,0.02850362]
[1765200439725,0.066336,91685.0,91684.0,0.05783362]
[1765200440529,0.05543,91685.0,91684.0,0.05783362]
[1765200441422,0.05643,91685.0,91684.0,0.05783362]
[1765200442228,0.05843,91685.0,91684.0,0.05783362]
[1765200444525,0.003,91685.0,91684.0,0.05783362]
[1765200444824,0.03068,91685.0,91684.0,0.05783362]
[1765200445021,0.05843,91685.0,91684.0,0.05783362]
[1765200446637,0.05843,91685.0,91684.0,0.00016362]
[1765200447235,0.05843,91685.0,91684.0,0.05783362]
[1765200447626,0.05643,91685.0,91684.0,0.05783362]
[1765200447826,0.05843,91685.0,91684.0,0.05783362]
[1765200448330,0.05643,91685.0,91684.0,0.05783362]
[1765200448741,0.05643,91685.0,91670.0,0.11187452]
[1765200448742,0.0663379,91669.0,91668.0,0.05767]
[1765200449235,0.05543,91661.0,91660.0,0.05767]
[1765200450531,0.05743,91661.0,91660.0,0.05767]
[1765200452032,0.002,91661.0,91660.0,0.05767]
[1765200452937,0.001,91661.0,91660.0,0.05767]
[1765200453129,0.002,91661.0,91660.0,0.05767]
[1765200453731,0.001,91661.0,91660.0,0.05767]
[1765200453926,0.0663382,91667.0,91666.0,0.05767]
[1765200456838,0.0683382,91667.0,91666.0,0.05767]
[1765200457933,0.0693382,91667.0,91666.0,0.05767]
[1765200461340,0.05843,91667.0,91666.0,0.05767]
[1765200461540,0.03068,91667.0,91666.0,0.05767]
[1765200462038,0.05843,91667.0,91666.0,0.05767]
[1765200462441,0.05743,91667.0,91666.0,0.05767]
[1765200462638,0.05843,91667.0,91666.0,0.05767]
[1765200462844,0.05643,91667.0,91666.0,0.05767]
[1765200463144,0.05843,91667.0,91666.0,0.05767]
[1765200463539,0.05743,91667.0,91666.0,0.05767]
[1765200468645,0.05743,91667.0,91658.0,0.01697]
[1765200468646,0.05454,91652.0,91651.0,0.06852362]
[1765200469944,0.05554,91652.0,91651.0,0.07152362]
[1765200470146,0.05554,91652.0,91651.0,0.07652362]
[1765200470644,0.001,91652.0,91651.0,0.07652362]
[1765200471241,0.0654484,91665.0,91664.0,0.0683585]
[1765200472449,0.0664484,91665.0,91664.0,0.0683585]
[1765200472838,0.0674484,91665.0,91664.0,0.0683585]
[1765200475945,0.05654,91665.0,91664.0,0.0683585]
[1765200476150,0.0674484,91665.0,91664.0,0.0683585]
[1765200479350,0.05654,91665.0,91664.0,0.0683585]
[1765200479851,0.05654,91665.0,91664.0,0.05745]
[1765200483958,0.0400084,91665.0,91664.0,0.05745]
[1765200484156,0.0682084,91665.0,91664.0,0.05745]
[1765200484553,0.0672084,91665.0,91664.0,0.05745]
[1765200489355,0.0834284,91665.0,91664.0,0.05745]
[1765200493347,0.0672084,91665.0,91664.0,0.05745]
[1765200498257,0.0842884,91665.0,91664.0,0.05745]
[1765200500262,0.001,91665.0,91664.0,0.0683585]
[1765200501363,0.001,91665.0,91664.0,0.10763658]
[1765200501872,0.00016362,91670.0,91669.0,0.0682379]
[1765200503469,0.00016362,91670.0,91669.0,0.0692379]
[1765200504770,0.00016362,91670.0,91669.0,0.0702379]
[1765200505764,0.02796,91680.0,91679.0,0.0682367]
[1765200505971,0.05673,91680.0,91679.0,0.0682367]
[1765200506858,0.05773,91680.0,91679.0,0.0682367]
[1765200508772,0.05973,91680.0,91679.0,0.0682367]
[1765200509462,0.05673,91671.0,91670.0,0.06840142]
[1765200509772,0.05673,91671.0,91670.0,0.01107142]
[1765200509975,0.05673,91671.0,91670.0,0.03896142]
[1765200510179,0.05673,91671.0,91670.0,0.06840142]
[1765200510681,0.05673,91671.0,91670.0,0.07040142]
[1765200512170,0.05673,91671.0,91670.0,0.06940142]
[1765200512373,0.05873,91671.0,91670.0,0.06940142]
[1765200512563,0.05873,91671.0,91670.0,0.06840142]
[1765200512767,0.05973,91671.0,91670.0,0.06840142]
[1765200513075,0.0706376,91671.0,91670.0,0.06840142]
[1765200513375,0.0696376,91671.0,91670.0,0.06840142]
[1765200513571,0.0706376,91671.0,91670.0,0.06840142]
[1765200513781,0.0686376,91671.0,91670.0,0.06840142]
[1765200513974,0.0706376,91671.0,91670.0,0.06840142]
[1765200514174,0.0696376,91671.0,91670.0,0.06840142]
[1765200515181,0.0686376,91671.0,91670.0,0.06840142]
[1765200515370,0.0706376,91671.0,91670.0,0.05749362]
[1765200515765,0.0696376,91671.0,91670.0,0.05749362]
[1765200515969,0.0706376,91671.0,91670.0,0.05749362]
[1765200516774,0.0686376,91671.0,91670.0,0.05749362]
[1765200516976,0.0706376,91671.0,91670.0,0.05749362]
[1765200518674,0.0686376,91671.0,91670.0,0.05749362]
[1765200518875,0.0696376,91671.0,91670.0,0.05749362]
[1765200519177,0.0706376,91671.0,91670.0,0.05749362]
[1765200520168,0.0686376,91671.0,91670.0,0.05749362]
[1765200520474,0.0696376,91671.0,91670.0,0.05749362]
[1765200520771,0.0706376,91671.0,91670.0,0.05749362]
[1765200521286,0.05973,91671.0,91670.0,0.05749362]
[1765200523779,0.05873,91671.0,91670.0,0.05749362]
[1765200528390,0.05773,91671.0,91670.0,0.05749362]
[1765200528582,0.05873,91671.0,91670.0,0.05749362]
[1765200529492,0.05773,91671.0,91670.0,0.05749362]
[1765200529986,0.05673,91671.0,91670.0,0.05749362]
[1765200530286,0.05773,91671.0,91670.0,0.05749362]
[1765200531191,0.001,91671.0,91670.0,0.05749362]
[1765200531688,0.068297,91677.0,91676.0,0.0574]
[1765200532088,0.05739,91677.0,91676.0,0.0814371]
[1765200533385,0.05839,91677.0,91676.0,0.0683071]
[1765200533789,0.05739,91677.0,91676.0,0.0683071]
[1765200533990,0.05839,91677.0,91676.0,0.0683071]
[1765200534188,0.05939,91677.0,91676.0,0.0683071]
[1765200534992,0.05839,91677.0,91676.0,0.0683071]
[1765200535199,0.05939,91677.0,91676.0,0.0683071]
[1765200536199,0.06039,91677.0,91676.0,0.0683071]
[1765200537308,0.05939,91677.0,91676.0,0.0683071]
[1765200537609,0.06039,91677.0,91676.0,0.0683071]
[1765200538008,0.05839,91677.0,91676.0,0.0683071]
[1765200538202,0.06039,91677.0,91676.0,0.0683071]
[1765200540204,0.10104377,91686.0,91676.0,0.0683071]
[1765200540205,0.05293436,91682.0,91681.0,0.0574]
[1765200540412,0.05293436,91682.0,91680.0,0.01718]
[1765200540413,0.00016362,91689.0,91688.0,0.0828856]
[1765200540707,0.0283533,91708.0,91699.0,0.0683043]
[1765200540708,0.11239,91700.0,91699.0,0.0683043]
[1765200541104,0.055,91700.0,91699.0,0.0683043]
[1765200542401,0.02529164,91700.0,91699.0,0.0683043]
[1765200542607,0.02047772,91700.0,91699.0,0.07933245]
[1765200543312,0.02047772,91700.0,91699.0,0.08233245]
[1765200543512,0.05739,91709.0,91708.0,0.0683032]
[1765200545119,0.05739,91709.0,91705.0,0.01645]
[1765200545120,0.05630362,91718.0,91717.0,0.0660922]
[1765200545415,0.00016362,91718.0,91717.0,0.0660922]
[1765200545610,0.05630362,91718.0,91717.0,0.0660922]
[1765200546317,0.05730362,91718.0,91717.0,0.0660922]
[1765200546711,0.05630362,91718.0,91717.0,0.0660922]
[1765200547014,0.02990362,91718.0,91717.0,0.0690922]
[1765200547219,0.05730362,91718.0,91717.0,0.0660922]
[1765200547604,0.02890362,91718.0,91717.0,0.0670922]
[1765200548412,0.05630362,91718.0,91717.0,0.0670922]
[1765200548917,0.05630362,91718.0,91717.0,0.0690922]
[1765200549312,0.05630362,91718.0,91717.0,0.0670922]
[1765200549617,0.05630362,91718.0,91717.0,0.0690922]
[1765200551615,0.05630362,91718.0,91717.0,0.0670922]
[1765200551815,0.05630362,91718.0,91717.0,0.0680922]
[1765200553021,0.05630362,91718.0,91717.0,0.0670922]
[1765200553324,0.05630362,91718.0,91717.0,0.0680922]
[1765200555818,0.05843362,91718.0,91717.0,0.0680922]
[1765200557221,0.05843362,91718.0,91717.0,0.001]
[1765200557222,0.05943362,91718.0,91717.0,0.001]
[1765200558635,0.05772,91714.0,91713.0,0.0109026]
[1765200559922,0.05972,91714.0,91713.0,0.0109026]
[1765200560317,0.05972,91714.0,91713.0,0.0686126]
[1765200561820,0.05872,91714.0,91713.0,0.0686126]
[1765200562024,0.05972,91714.0,91713.0,0.0686126]
[1765200562923,0.05872,91714.0,91713.0,0.0686126]
[1765200563129,0.05972,91714.0,91713.0,0.0686126]
[1765200565033,0.05872,91714.0,91713.0,0.0696126]
[1765200565424,0.05772,91714.0,91713.0,0.0706126]
[1765200565927,0.00016362,91718.0,91717.0,0.05771]
[1765200566130,0.05788362,91718.0,91717.0,0.05771]
[1765200567033,0.05788362,91718.0,91717.0,0.05871]
[1765200568638,0.05788362,91718.0,91717.0,0.05771]
[1765200570942,0.05788362,91718.0,91717.0,0.05871]
[1765200574442,0.05788362,91718.0,91717.0,0.05771]
[1765200574834,0.05888362,91718.0,91717.0,0.05771]
[1765200575141,0.05988362,91718.0,91717.0,0.05771]
[1765200575543,0.05888362,91718.0,91717.0,0.05771]
[1765200575740,0.05988362,91718.0,91717.0,0.05771]
[1765200577146,0.05888362,91718.0,91717.0,0.05771]
[1765200577442,0.05772,91716.0,91715.0,0.02940365]
[1765200577645,0.07501,91715.0,91714.0,0.04030615]
[1765200577843,0.07501,91715.0,91714.0,0.09801615]
[1765200578042,0.07501,91715.0,91714.0,0.0686125]
[1765200578846,0.07601,91715.0,91714.0,0.0686125]
[1765200579435,0.07501,91715.0,91714.0,0.0686125]
[1765200579634,0.05872,91715.0,91714.0,0.0686125]
[1765200580043,0.05772,91712.0,91711.0,0.0388928]
[1765200580246,0.05772,91712.0,91711.0,0.0686128]
[1765200581444,0.05772,91712.0,91711.0,0.0696128]
[1765200582945,0.05772,91712.0,91711.0,0.0706128]
[1765200583246,0.05772,91712.0,91711.0,0.10983349]
[1765200584445,0.05772,91712.0,91711.0,0.10883349]
[1765200584839,0.0386023,91717.0,91716.0,0.0686323]
[1765200585052,0.0277,91717.0,91716.0,0.09806668]
[1765200585248,0.05717,91717.0,91716.0,0.09806668]
[1765200585543,0.05717,91717.0,91716.0,0.0686323]
[1765200586144,0.05817,91717.0,91716.0,0.0686323]
[1765200588141,0.05817,91717.0,91716.0,0.0696323]
[1765200588444,0.05817,91717.0,91716.0,0.0119023]
[1765200588645,0.07483,91715.0,91714.0,0.03922069]
[1765200588834,0.05717,91713.0,91712.0,0.0109027]
[1765200589445,0.05717,91713.0,91712.0,0.0387627]
[1765200590046,0.05717,91713.0,91712.0,0.02786]
[1765200590840,0.05817,91713.0,91712.0,0.02786]
[1765200591350,0.05717,91713.0,91712.0,0.05773]
[1765200591541,0.05917,91713.0,91712.0,0.05773]
[1765200591951,0.05817,91713.0,91712.0,0.05773]
[1765200592343,0.05917,91713.0,91712.0,0.05773]
[1765200597357,0.05817,91713.0,91712.0,0.05773]
[1765200597544,0.05717,91713.0,91712.0,0.05773]
[1765200599754,0.0680726,91713.0,91712.0,0.05773]
[1765200600755,0.0680726,91713.0,91712.0,0.08716967]
[1765200600946,0.0690726,91713.0,91712.0,0.08716967]
[1765200601152,0.0700726,91713.0,91712.0,0.05773]
[1765200601351,0.05917,91713.0,91712.0,0.05773]
[1765200602348,0.002,91713.0,91712.0,0.05773]
[1765200602548,0.002,91713.0,91712.0,0.08716934]
[1765200602851,0.002,91713.0,91712.0,0.05773]
[1765200603251,0.001,91713.0,91712.0,0.05773]
[1765200603460,0.00034511,91713.0,91712.0,0.05773]
[1765200603759,0.00016362,91718.0,91717.0,0.05773]
[1765200604260,0.00016362,91718.0,91717.0,0.0686322]
[1765200604944,0.05702362,91718.0,91717.0,0.0706322]
[1765200605150,0.05702362,91718.0,91717.0,0.0716322]
[1765200607154,0.05702362,91718.0,91717.0,0.0696322]
[1765200608158,0.05702362,91718.0,91717.0,0.0686322]
[1765200608354,0.00016362,91718.0,91717.0,0.0696322]
[1765200608856,0.05839589,91730.0,91717.0,0.0696322]
[1765200608857,0.0282,91735.0,91734.0,0.0844902]
[1765200609357,0.05736,91735.0,91734.0,0.0844902]
[1765200609658,0.05736,91740.0,91739.0,0.0679396]
[1765200611161,0.05836,91740.0,91739.0,0.0679396]
[1765200612264,0.07544,91740.0,91739.0,0.0679396]
[1765200613661,0.05834,91729.0,91728.0,0.05807]
[1765200613863,0.05834,91729.0,91728.0,0.0689709]
[1765200614661,0.05834,91726.0,91725.0,0.04014472]
[1765200615960,0.05834,91726.0,91725.0,0.06913472]
[1765200616557,0.02941,91726.0,91725.0,0.06913472]
[1765200616755,0.07542,91740.0,91739.0,0.05807]
[1765200616955,0.0863194,91740.0,91739.0,0.05807]
[1765200617654,0.0692394,91740.0,91739.0,0.05807]
[1765200618066,0.06034,91740.0,91739.0,0.05807]
[1765200618266,0.0732394,91740.0,91739.0,0.05807]
[1765200618963,0.06234,91740.0,91739.0,0.05807]
[1765200619265,0.03341,91740.0,91739.0,0.05807]
[1765200619866,0.06034,91740.0,91739.0,0.05807]
[1765200620065,0.06134,91740.0,91739.0,0.05807]
[1765200620266,0.05934,91740.0,91739.0,0.05807]
[1765200620467,0.05834,91740.0,91739.0,0.05807]
[1765200620665,0.05834,91740.0,91739.0,0.05907]
[1765200621058,0.05834,91740.0,91739.0,0.06007]
[1765200621261,0.05834,91740.0,91739.0,0.002]
[1765200621658,0.0692411,91726.0,91725.0,0.00016352]
[1765200622461,0.05834,91726.0,91725.0,0.05823352]
[1765200623365,0.03141,91726.0,91725.0,0.05823352]
[1765200623573,0.03341,91726.0,91725.0,0.05823352]
[1765200623867,0.06234,91726.0,91725.0,0.05823352]
[1765200624072,0.06034,91726.0,91725.0,0.05823352]
[1765200624271,0.05834,91726.0,91725.0,0.05823352]
[1765200626763,0.05834,91734.0,91733.0,0.0689703]
[1765200627674,0.05834,91734.0,91733.0,0.05807]
[1765200627971,0.05834,91731.0,91730.0,0.0109006]
[1765200628170,0.01708,91728.0,91727.0,0.0399809]
[1765200628370,0.07542,91728.0,91727.0,0.0399809]
[1765200628566,0.07542,91728.0,91725.0,0.00016352]
[1765200628772,0.05834,91726.0,91725.0,0.00016352]
[1765200630081,0.06134,91726.0,91725.0,0.00016352]
[1765200630666,0.06334,91726.0,91725.0,0.00016352]
[1765200631273,0.06434,91726.0,91725.0,0.00016352]
[1765200631968,0.06234,91726.0,91725.0,0.00016352]
[1765200632170,0.06434,91726.0,91725.0,0.00016352]
[1765200632873,0.06334,91726.0,91725.0,0.00016352]
[1765200633476,0.06434,91726.0,91725.0,0.00016352]
[1765200634074,0.06334,91726.0,91725.0,0.00016352]
[1765200635576,0.0692429,91711.0,91710.0,0.010903]
[1765200635775,0.0692429,91711.0,91710.0,0.068973]
[1765200636672,0.05834,91706.0,91705.0,0.08749444]
[1765200636885,0.069244,91702.0,91701.0,0.00016352]
[1765200637065,0.069244,91702.0,91701.0,0.02924352]
[1765200637267,0.05834,91702.0,91701.0,0.02924352]
[1765200637586,0.05834,91702.0,91701.0,0.05823352]
[1765200638269,0.02941,91702.0,91701.0,0.05823352]
[1765200638576,0.05834,91702.0,91701.0,0.05823352]
[1765200639373,0.05934,91702.0,91701.0,0.05823352]
[1765200639677,0.06034,91702.0,91701.0,0.05823352]
[1765200640580,0.05934,91702.0,91701.0,0.05823352]
[1765200642785,0.06034,91702.0,91701.0,0.05823352]
[1765200643888,0.002,91702.0,91701.0,0.05823352]
[1765200645291,0.001,91702.0,91701.0,0.05923352]
[1765200645588,0.0654031,91710.0,91709.0,0.05765]
[1765200646392,0.08990752,91720.0,91719.0,0.0685519]
[1765200646393,0.06556532,91720.0,91719.0,0.0685519]
[1765200647790,0.05466352,91720.0,91719.0,0.0685519]
[1765200648688,0.05566352,91720.0,91719.0,0.0685519]
[1765200648890,0.05766352,91720.0,91719.0,0.0685519]
[1765200650393,0.05566352,91720.0,91719.0,0.0685519]
[1765200650792,0.05466352,91720.0,91719.0,0.0685519]
[1765200651299,0.0545,91717.0,91716.0,0.0387322]
[1765200651595,0.0545,91717.0,91716.0,0.0685522]
[1765200651893,0.0545,91717.0,91716.0,0.0864522]
[1765200652395,0.02838352,91720.0,91719.0,0.0685519]
[1765200652595,0.05566352,91720.0,91719.0,0.0685519]
[1765200653896,0.05466352,91720.0,91719.0,0.0685519]
[1765200654694,0.05466352,91720.0,91719.0,0.0387319]
[1765200655098,0.05466352,91720.0,91719.0,0.0695519]
[1765200655400,0.05566352,91720.0,91719.0,0.0695519]
[1765200655598,0.05666352,91720.0,91719.0,0.0685519]
[1765200656000,0.02938352,91720.0,91719.0,0.0685519]
[1765200656202,0.05666352,91720.0,91719.0,0.0685519]
[1765200656707,0.05566352,91720.0,91719.0,0.0685519]
[1765200656892,0.05666352,91720.0,91719.0,0.0685519]
[1765200658098,0.05566352,91720.0,91719.0,0.0685519]
[1765200658402,0.05466352,91720.0,91719.0,0.0685519]
[1765200660203,0.00016352,91720.0,91719.0,0.0685519]
[1765200660900,3.52e-06,91720.0,91719.0,0.0685519]
[1765200662207,0.00200352,91720.0,91719.0,0.11971709]
[1765200663298,0.05792,91744.0,91743.0,0.0685391]
[1765200665009,0.06192,91744.0,91743.0,0.0685391]
[1765200665501,0.05992,91744.0,91743.0,0.0685391]
[1765200665901,0.001,91744.0,91743.0,0.0685391]
[1765200666498,0.001,91744.0,91743.0,0.09790625]
[1765200666810,0.001,91744.0,91743.0,0.0685391]
[1765200667304,0.02994594,91753.0,91752.0,0.083138]
[1765200667806,0.05802594,91753.0,91752.0,0.083138]
[1765200668006,0.05802594,91753.0,91752.0,0.068538]
[1765200668400,0.07192384,91753.0,91752.0,0.068538]
[1765200668601,0.0108984,91749.0,91748.0,0.0108984]
[1765200668794,0.0688184,91749.0,91748.0,0.0299]
[1765200669003,0.05792,91745.0,91744.0,0.010899]
[1765200669503,0.05792,91735.0,91734.0,0.05780352]
[1765200671711,0.05792,91735.0,91734.0,0.06080352]
[1765200672112,0.05792,91735.0,91734.0,0.06180352]
[1765200672411,0.05792,91735.0,91734.0,0.05980352]
[1765200672807,0.05792,91735.0,91734.0,0.05880352]
[1765200673002,0.05792,91735.0,91734.0,0.06080352]
[1765200674110,0.05792,91735.0,91734.0,0.00316352]
[1765200674111,0.07282,91735.0,91734.0,0.00316352]
[1765200674314,0.07282,91735.0,91734.0,0.00116352]
[1765200674507,0.07282,91735.0,91734.0,0.00316352]
[1765200675205,0.07282,91735.0,91734.0,0.00216352]
[1765200675405,0.07382,91735.0,91734.0,0.00216352]
[1765200675809,0.07482,91735.0,91734.0,0.00016352]
[1765200677113,0.07382,91735.0,91734.0,0.00016352]
[1765200677412,0.07482,91735.0,91734.0,0.00016352]
[1765200677606,0.07382,91735.0,91734.0,0.00016352]
[1765200677805,0.07782,91735.0,91734.0,0.00016352]
[1765200678002,0.07882,91735.0,91734.0,0.00016352]
[1765200678205,0.03184,91735.0,91734.0,0.05712352]
[1765200678406,0.06275,91735.0,91734.0,0.05712352]
[1765200678804,0.05975,91735.0,91734.0,0.05712352]
[1765200679112,0.06275,91735.0,91734.0,0.05712352]
[1765200679505,0.07628,91735.0,91734.0,0.05712352]
[1765200679908,0.07428,91735.0,91734.0,0.05712352]
[1765200680111,0.07628,91735.0,91734.0,0.05712352]
[1765200680813,0.07528,91735.0,91734.0,0.05712352]
[1765200681514,0.07428,91735.0,91734.0,0.05712352]
[1765200681813,0.07628,91735.0,91734.0,0.05712352]
[1765200682214,0.07528,91735.0,91734.0,0.05712352]
[1765200682515,0.07628,91735.0,91734.0,0.05712352]
[1765200683616,0.07628,91735.0,91734.0,0.00016352]
[1765200683812,0.07628,91735.0,91708.0,0.05883472]
[1765200683813,0.05787,91719.0,91716.0,0.02933725]
[1765200684015,0.05787,91713.0,91712.0,0.02771]
[1765200684317,0.05787,91713.0,91712.0,0.0386128]
[1765200684920,0.05787,91713.0,91712.0,0.02771]
[1765200685110,0.05787,91708.0,91707.0,0.0678634]
[1765200686315,0.05787,91705.0,91704.0,0.02933725]
[1765200686514,0.0274334,91707.0,91703.0,0.00016352]
[1765200686515,0.0687737,91704.0,91703.0,0.00016352]
[1765200686817,0.0687737,91704.0,91703.0,0.02787352]
[1765200687211,0.0687737,91704.0,91703.0,0.05712352]
[1765200687909,0.0687737,91704.0,91703.0,0.05812352]
[1765200688107,0.05887,91704.0,91703.0,0.05812352]
[1765200688321,0.05887,91704.0,91703.0,0.05712352]
[1765200689119,0.001,91704.0,91703.0,0.05712352]
[1765200689509,0.00067296,91704.0,91703.0,0.05712352]
[1765200690130,0.0687721,91719.0,91718.0,0.05696]
[1765200691920,0.0697721,91719.0,91718.0,0.05696]
[1765200693321,0.05887,91719.0,91718.0,0.05696]
[1765200694414,0.05787,91719.0,91718.0,0.05696]
[1765200694621,0.0109036,91705.0,91704.0,0.0109037]
[1765200694819,0.05787,91705.0,91704.0,0.0386137]
[1765200695010,0.05787,91705.0,91704.0,0.02771]
[1765200695214,0.05787,91705.0,91704.0,0.0386137]
[1765200695521,0.05787,91705.0,91704.0,0.0678637]
[1765200697217,0.05787,91705.0,91704.0,0.0786937]
[1765200697424,0.05787,91705.0,91704.0,0.0796937]
[1765200698715,0.05787,91714.0,91713.0,0.0678626]
[1765200699120,0.07267,91714.0,91713.0,0.0109026]
[1765200699525,0.07267,91714.0,91704.0,0.001]
[1765200699526,0.0687736,91705.0,91704.0,0.0396136]
[1765200699717,0.0687736,91705.0,91704.0,0.0119036]
[1765200700026,0.0687736,91705.0,91704.0,0.0396136]
[1765200700220,0.0687736,91705.0,91704.0,0.02971]
[1765200700720,0.0687736,91705.0,91704.0,0.002]
[1765200701024,0.0687736,91705.0,91704.0,0.001]
[1765200701211,0.05787,91704.0,91703.0,0.00016352]
[1765200703625,0.05887,91704.0,91703.0,0.00016352]
[1765200703818,0.06187,91704.0,91703.0,0.00016352]
[1765200704331,0.05887,91704.0,91703.0,0.00016352]
[1765200704524,0.06087,91704.0,91703.0,0.00016352]
[1765200705324,0.06087,91704.0,91688.0,0.02933725]
[1765200705325,0.05608,91689.0,91688.0,0.02933725]
[1765200705518,0.0669856,91688.0,91687.0,0.0382057]
[1765200706126,0.0669856,91688.0,91687.0,0.0657457]
[1765200707230,0.0669856,91688.0,91687.0,0.0667457]
[1765200707533,0.0669856,91688.0,91687.0,0.003]
[1765200708029,0.0814967,91679.0,91678.0,0.00016352]
[1765200708530,0.05608,91671.0,91670.0,0.05484]
[1765200708727,0.05608,91671.0,91670.0,0.0657478]
[1765200709635,0.05619305,91671.0,91670.0,0.0382078]
[1765200710425,0.05719305,91671.0,91670.0,0.0382078]
[1765200710725,0.05719305,91671.0,91670.0,0.0109078]
[1765200711332,0.05719305,91671.0,91670.0,0.0382078]
[1765200711521,0.05719305,91671.0,91670.0,0.0109078]
[1765200711829,0.0669878,91670.0,91669.0,0.07967697]
[1765200712730,0.05608,91670.0,91669.0,0.13451697]
[1765200713130,0.0669878,91670.0,91669.0,0.13451697]
[1765200713533,0.05608,91669.0,91668.0,0.0109079]
[1765200714327,0.010908,91668.0,91665.0,0.0109083]
[1765200714532,0.0109085,91664.0,91662.0,0.0109087]
[1765200714728,0.05608,91663.0,91662.0,0.0109087]
[1765200715025,0.0669887,91662.0,91661.0,0.00016361]
[1765200716425,0.07363,91651.0,91650.0,0.0109101]
[1765200716624,0.07373746,91651.0,91650.0,0.0109101]
[1765200716932,0.05608,91648.0,91647.0,0.0657505]
[1765200718131,0.00110746,91651.0,91650.0,0.0109101]
[1765200718338,0.05718746,91651.0,91650.0,0.0657501]
[1765200719236,0.05618746,91651.0,91650.0,0.0657501]
[1765200719440,0.07373746,91651.0,91650.0,0.0109101]
[1765200719637,0.05618746,91651.0,91650.0,0.0657501]
[1765200719940,0.05618746,91651.0,91650.0,0.0667501]
[1765200720634,0.07298746,91651.0,91650.0,0.001]
[1765200721035,0.0562,91649.0,91648.0,0.0388003]
[1765200721635,0.0562,91639.0,91638.0,0.05708361]
[1765200721836,0.02859,91644.0,91643.0,0.02789]
[1765200722036,0.07310746,91651.0,91650.0,0.0678301]
[1765200722632,0.02869746,91651.0,91650.0,0.0678301]
[1765200722838,0.00010746,91651.0,91650.0,0.0678301]
[1765200724040,0.00010746,91651.0,91650.0,0.0688301]
[1765200724246,0.02869746,91651.0,91650.0,0.0688301]
[1765200724635,0.05630746,91651.0,91650.0,0.0698301]
[1765200724836,0.07310746,91651.0,91650.0,0.0698301]
[1765200725035,0.07310746,91651.0,91650.0,0.002]
[1765200725639,0.0671111,91642.0,91641.0,0.0109112]
[1765200725940,0.0562,91642.0,91641.0,0.0678312]
[1765200726146,0.0671111,91642.0,91641.0,0.0678312]
[1765200727133,0.0671111,91642.0,91641.0,0.0109112]
[1765200727333,0.0671111,91642.0,91641.0,0.001]
[1765200727735,0.02859,91639.0,91638.0,0.03896521]
[1765200727939,0.0562,91639.0,91638.0,0.06799521]
[1765200729437,0.0572,91639.0,91638.0,0.06799521]
[1765200730245,0.0572,91639.0,91638.0,0.01107521]
[1765200730246,0.0681115,91639.0,91638.0,0.01107521]
[1765200730446,0.0681115,91639.0,91638.0,0.00016361]
[1765200730842,0.0681115,91639.0,91638.0,0.00116361]
[1765200731042,0.0671115,91639.0,91638.0,0.00116361]
[1765200731344,0.0671115,91639.0,91638.0,0.00016361]
[1765200731537,0.0168,91630.0,91624.0,0.00013133]
[1765200731842,0.0562,91625.0,91624.0,0.06796453]
[1765200732842,0.0562,91625.0,91624.0,0.01104453]
[1765200733247,0.0562,91625.0,91624.0,0.01304453]
[1765200733454,0.0572,91625.0,91624.0,0.02104453]
[1765200734452,0.0572,91625.0,91624.0,0.05051453]
[1765200734645,0.0572,91625.0,91624.0,0.01904453]
[1765200734952,0.0582,91625.0,91624.0,0.02304453]
[1765200735156,0.0582,91625.0,91624.0,0.08031453]
[1765200737252,0.002,91625.0,91624.0,0.08031453]
[1765200737654,0.05734,91625.0,91624.0,0.08031453]
[1765200738754,0.002,91625.0,91624.0,0.08031453]
[1765200739654,0.03029,91625.0,91624.0,0.08031453]
[1765200740457,0.002,91625.0,91624.0,0.08031453]
[1765200740645,0.00011305,91629.0,91628.0,0.0681828]
[1765200740849,0.0001637,91634.0,91633.0,0.0681822]
[1765200741953,0.02705,91633.0,91632.0,0.10729446]
[1765200742158,0.05534,91633.0,91632.0,0.0681823]
[1765200743454,0.05534,91629.0,91628.0,0.0119127]
[1765200743659,0.05534,91628.0,91627.0,0.0109128]
[1765200743959,0.05534,91625.0,91624.0,0.00013133]
[1765200744357,0.05534,91625.0,91624.0,0.02960133]
[1765200744862,0.05534,91625.0,91624.0,0.05740133]
[1765200745250,0.05634,91625.0,91624.0,0.06140133]